fUST/lending_fUST_20260403
["ID","MTS","AMOUNT","RATE_DAILY","PERIOD"]
[419401584,1775212486759,331.40023745,0.00034755,120]
[419401585,1775212487074,331.40023745,0.00034755,120]
[419401586,1775212487363,331.40023745,0.00034755,120]
[419401587,1775212487656,331.40023745,0.00034755,120]
[419401588,1775212488064,331.40023745,0.00034755,120]
[419401589,1775212488282,331.40023745,0.00034755,120]
[419401590,1775212488603,331.40023745,0.00034755,120]
[419401714,1775212604113,165.70011872,0.00034755,120]
[419401961,1775212830588,225.18496,9.001e-05,2]
[419401971,1775212914783,1412.14877928,0.00034755,120]
[419402194,1775213431941,-1000.0,0.00012,2]
[419402195,1775213431951,-1000.0,0.00013699,2]
[419402196,1775213431960,-362.68420886,0.00015856,2]
[419402197,1775213431970,-1180.0,0.00018,5]
[419402198,1775213431980,-300.0,0.00019853,2]
[419402199,1775213431990,-989.0,0.00019853,2]
[419402200,1775213431999,-1036.24124356,0.00019854,2]
[419402201,1775213432009,-1634.09150858,0.00019854,2]
[419402202,1775213432021,-208.11514663,0.00019854,2]
[419402203,1775213432031,-68.24485337,0.00019854,2]
[419402204,1775213432043,-997.32222237,0.00019854,2]
[419402205,1775213432054,-1812.88082303,0.00019854,2]
[419402206,1775213432065,-4140.82000925,0.00019854,2]
[419402207,1775213432074,-323.07835759,0.00019854,2]
[419402208,1775213432084,-573.78716308,0.00019854,2]
[419402209,1775213432093,-184.0,0.00020799,2]
[419402210,1775213432103,-246.52059215,0.00020899,2]
[419402211,1775213432113,-443.73706587,0.00020899,2]
[419402212,1775213432123,-788.07702898,0.00020976,2]
[419402213,1775213432132,-984.6697484,0.00021119,2]
[419402214,1775213432141,-500.0,0.00021517,2]
[419402215,1775213432150,-42.15126023,0.00021517,2]
[419402216,1775213432163,-457.84873977,0.00021517,2]
[419402217,1775213432172,-500.0,0.00021517,2]
[419402218,1775213432181,-451.81823004,0.00021517,2]
[419402219,1775213432193,-48.18176996,0.00021517,2]
[419402220,1775213432202,-240.66006908,0.0002156,2]
[419402221,1775213432212,-500.0,0.00021733,2]
[419402222,1775213432221,-980.64,0.00021888,10]
[419402223,1775213432230,-1954.74,0.00021888,10]
[419402224,1775213432240,-1628.95,0.00021888,10]
[419402225,1775213432250,-183.3600597,0.00021897,2]
[419402226,1775213432259,-399.28403805,0.00021897,2]
[419402227,1775213432269,-500.0,0.00021897,2]
[419402228,1775213432278,-91.25468104,0.00021898,2]
[419402229,1775213432290,-1078.08916142,0.00021898,2]
[419402934,1775213440841,-160.44004605,0.0002156,2]
[419402936,1775213440852,-223.59345495,0.00021898,2]
[419403377,1775213445235,-160.44004606,0.0002156,2]
[419403379,1775213445245,-759.88812422,0.00021898,2]
[419403504,1775213446457,-78029.85560376,0.00021898,2]
[419403506,1775213446467,-151.0,0.00021918,2]
[419403508,1775213446477,-282.4404,0.00021918,2]
[419403510,1775213446486,-151.0,0.00021918,2]
[419403512,1775213446495,-151.0,0.00021918,2]
[419403514,1775213446505,-151.0,0.00021918,2]
[419403516,1775213446515,-154.48,0.00021918,2]
[419403518,1775213446525,-151.0,0.00021918,2]
[419403520,1775213446534,-151.0,0.00021918,2]
[419403522,1775213446543,-151.0,0.00021918,2]
[419403524,1775213446552,-151.0,0.00021918,2]
[419403526,1775213446561,-151.0,0.00021918,2]
[419403528,1775213446571,-151.0,0.00021918,2]
[419403530,1775213446581,-151.0,0.00021918,2]
[419403533,1775213446591,-277.466804,0.00021918,2]
[419403534,1775213446601,-151.0,0.00021918,2]
[419403536,1775213446611,-151.0,0.00021918,2]
[419403538,1775213446621,-166.369916,0.00021918,2]
[419403540,1775213446630,-246.08775662,0.00021973,2]
[419403542,1775213446640,-500.0,0.00021973,2]
[419403545,1775213446651,-230.33171921,0.00021973,2]
[419403547,1775213446660,-500.0,0.00021973,2]
[419403548,1775213446669,-500.0,0.00021973,2]
[419403551,1775213446680,-500.0,0.00021973,2]
[419403553,1775213446691,-500.0,0.00021994,2]
[419403555,1775213446700,-180.49295197,0.00021994,2]
[419403557,1775213446709,-500.0,0.00021994,2]
[419403559,1775213446719,-500.0,0.00021994,2]
[419403561,1775213446729,-500.0,0.00021994,2]
[419403563,1775213446739,-500.0,0.00021994,2]
[419403565,1775213446748,-500.0,0.00021994,2]
[419403566,1775213446757,-500.0,0.00021994,2]
[419403567,1775213446766,-500.0,0.00021994,2]
[419403568,1775213446777,-500.0,0.00021994,2]
[419403569,1775213446786,-500.0,0.00021994,2]
[419403570,1775213446796,-377.16326043,0.00021994,2]
[419403571,1775213446806,-500.0,0.00021994,2]
[419403572,1775213446816,-500.0,0.00021994,2]
[419403573,1775213446826,-500.0,0.00021994,2]
[419403574,1775213446835,-500.0,0.00021994,2]
[419403575,1775213446844,-500.0,0.00021994,2]
[419403576,1775213446854,-500.0,0.00021994,2]
[419403577,1775213446864,-500.0,0.00021994,2]
[419403578,1775213446874,-500.0,0.00021994,2]
[419403579,1775213446883,-500.0,0.00021994,2]
[419403580,1775213446893,-580.49304,0.00021994,2]
[419403581,1775213446902,-580.49304,0.00021994,2]
[419403582,1775213446911,-580.49304,0.00021994,2]
[419403583,1775213446920,-580.49304,0.00021994,2]
[419403584,1775213446930,-580.49304,0.00021994,2]
[419403585,1775213446941,-580.49304,0.00021994,2]
[419403586,1775213446950,-580.49304,0.00021994,2]
[419403587,1775213446959,-580.49304,0.00021994,2]
[419403588,1775213446969,-557.03877575,0.00021994,2]
[419403589,1775213446979,-557.03877575,0.00021994,2]
[419403590,1775213446988,-557.03877575,0.00021994,2]
[419403591,1775213446998,-151.0,0.00021994,2]
[419403592,1775213447007,-151.0,0.00021994,2]
[419403593,1775213447016,-151.0,0.00021994,2]
[419403594,1775213447026,-151.0,0.00021994,2]
[419403595,1775213447035,-151.0,0.00021994,2]
[419403597,1775213447044,-151.0,0.00021994,2]
[419403598,1775213447054,-151.0,0.00021995,2]
[419403599,1775213447063,-151.0,0.00021995,2]
[419403601,1775213447073,-151.0,0.00021995,2]
[419403603,1775213447082,-151.0,0.00021995,2]
[419403605,1775213447091,-151.0,0.00021995,2]
[419403607,1775213447100,-151.0,0.00021995,2]
[419403609,1775213447109,-387.98799,0.00021997,2]
[419403611,1775213447119,-387.98799,0.00021997,2]
[419403613,1775213447163,-387.98799,0.00021997,2]
[419403615,1775213447174,-387.98799,0.00021997,2]
[419403617,1775213447187,-387.98799,0.00021997,2]
[419403619,1775213447200,-387.98799,0.00021997,2]
[419403622,1775213447212,-387.98799,0.00021997,2]
[419403624,1775213447225,-387.98799,0.00021997,2]
[419403626,1775213447236,-216.397,0.00021997,2]
[419403628,1775213447248,-151.0,0.00021997,2]
[419403631,1775213447259,-151.0,0.00021997,2]
[419403633,1775213447269,-151.0,0.00021997,2]
[419403635,1775213447280,-151.0,0.00021997,2]
[419403637,1775213447292,-520.779653,0.00021997,2]
[419403639,1775213447304,-520.779653,0.00021997,2]
[419403641,1775213447315,-520.779653,0.00021997,2]
[419403644,1775213447327,-520.779653,0.00021997,2]
[419403646,1775213447339,-520.779653,0.00021997,2]
[419403648,1775213447350,-520.779653,0.00021997,2]
[419403651,1775213447363,-520.779653,0.00021997,2]
[419403653,1775213447374,-520.779653,0.00021997,2]
[419403655,1775213447386,-151.0,0.00021997,2]
[419403657,1775213447397,-151.0,0.00021997,2]
[419403659,1775213447408,-151.0,0.00021997,2]
[419403662,1775213447420,-151.0,0.00021997,2]
[419403664,1775213447432,-151.0,0.00021997,2]
[419403666,1775213447443,-151.0,0.00021997,2]
[419403668,1775213447455,-151.0,0.00021997,2]
[419403670,1775213447465,-151.0,0.00021997,2]
[419403673,1775213447477,-151.0,0.00021997,2]
[419403675,1775213447488,-151.0,0.00021997,2]
[419403677,1775213447501,-151.0,0.00021997,2]
[419403679,1775213447512,-151.0,0.00021998,2]
[419403681,1775213447525,-151.0,0.00021998,2]
[419403683,1775213447536,-151.0,0.00021998,2]
[419403685,1775213447546,-151.0,0.00021998,2]
[419403687,1775213447556,-387.98799,0.00021998,2]
[419403690,1775213447566,-387.98799,0.00021998,2]
[419403692,1775213447578,-2.63510798,0.00021998,2]
[419403694,1775213447592,-299.62046438,0.00021998,2]
[419415393,1775214081399,-1907.85295218,0.00012897,2]
[419415414,1775214196373,336.1,0.000328,120]
[419415436,1775214372045,4168.19343488,0.00034758,120]
[419415438,1775214374625,200.0,0.00034758,120]
[419415442,1775214399287,491.0,0.00034758,120]
[419415558,1775214632145,-1000.0,0.00013699,2]
[419415560,1775214632155,-1000.0,0.00020019,2]
[419415562,1775214632164,-184.0,0.00020885,2]
[419415564,1775214632173,-1954.8213052,0.00021,2]
[419415868,1775214638373,-1045.1786948,0.00021,2]
[419415869,1775214638384,-800.50931039,0.00021,2]
[419415871,1775214638393,-213.0,0.00021009,2]
[419415873,1775214638403,-3000.0,0.0002101,2]
[419415875,1775214638413,-300.0,0.00021019,2]
[419415877,1775214638423,-459.62414496,0.0002102,2]
[419415880,1775214638440,-2540.37585504,0.0002102,2]
[419415882,1775214638449,-3000.0,0.0002103,2]
[419415884,1775214638459,-3000.0,0.0002104,2]
[419415886,1775214638469,-3000.0,0.0002105,2]
[419415888,1775214638478,-3000.0,0.0002106,2]
[419415890,1775214638489,-2727.59870877,0.0002107,2]
[419415892,1775214638500,-272.40129123,0.0002107,2]
[419415894,1775214638510,-3000.0,0.0002108,2]
[419415896,1775214638520,-3000.0,0.0002109,2]
[419415898,1775214638529,-3000.0,0.000211,2]
[419415900,1775214638538,-2938.97411881,0.0002111,2]
[419415902,1775214638550,-61.02588119,0.0002111,2]
[419415904,1775214638560,-3000.0,0.0002112,2]
[419415906,1775214638569,-247.87452974,0.0002113,2]
[419416363,1775214643813,-4604.94211126,0.0002113,2]
[419416365,1775214643823,-176.39489157,0.00021887,2]
[419416367,1775214643833,-160.44004606,0.00021898,2]
[419416370,1775214643843,-500.0,0.00021917,2]
[419416372,1775214643852,-500.0,0.00021917,2]
[419416373,1775214643862,-500.0,0.00021917,2]
[419416375,1775214643872,-500.0,0.00021917,2]
[419416377,1775214643881,-500.0,0.00021917,2]
[419416379,1775214643891,-500.0,0.00021917,2]
[419416381,1775214643902,-500.0,0.00021917,2]
[419416383,1775214643911,-500.0,0.00021917,2]
[419416385,1775214643920,-500.0,0.00021917,2]
[419416387,1775214643930,-500.0,0.00021917,2]
[419416390,1775214643940,-500.0,0.00021917,2]
[419416392,1775214643949,-500.0,0.00021917,2]
[419416394,1775214643959,-500.0,0.00021917,2]
[419416396,1775214643968,-500.0,0.00021917,2]
[419416397,1775214643978,-500.0,0.00021917,2]
[419416399,1775214643987,-214.01428231,0.00021917,2]
[419416401,1775214643996,-500.0,0.00021917,2]
[419416403,1775214644006,-500.0,0.00021917,2]
[419416405,1775214644015,-500.0,0.00021917,2]
[419416407,1775214644025,-500.0,0.00021917,2]
[419416409,1775214644034,-500.0,0.00021917,2]
[419416411,1775214644043,-500.0,0.00021917,2]
[419416413,1775214644053,-261.36337641,0.00021917,2]
[419416415,1775214644063,-500.0,0.00021917,2]
[419416417,1775214644073,-500.0,0.00021917,2]
[419416419,1775214644083,-500.0,0.00021917,2]
[419416421,1775214644092,-500.0,0.00021917,2]
[419416423,1775214644102,-500.0,0.00021917,2]
[419416425,1775214644112,-151.0,0.00021918,2]
[419416427,1775214644122,-178.881216,0.00021918,2]
[419416429,1775214644131,-178.881216,0.00021918,2]
[419416431,1775214644141,-178.881216,0.00021918,2]
[419416433,1775214644150,-178.881216,0.00021918,2]
[419416435,1775214644160,-312.467792,0.00021918,2]
[419416437,1775214644169,-312.467792,0.00021918,2]
[419416439,1775214644178,-312.467792,0.00021918,2]
[419416441,1775214644187,-312.467792,0.00021918,2]
[419416443,1775214644196,-284.046332,0.00021918,2]
[419416445,1775214644205,-284.046332,0.00021918,2]
[419416447,1775214644215,-284.046332,0.00021918,2]
[419416449,1775214644224,-284.046332,0.00021918,2]
[419416451,1775214644233,-284.046332,0.00021918,2]
[419416453,1775214644243,-284.046332,0.00021918,2]
[419416455,1775214644252,-284.046332,0.00021918,2]
[419416457,1775214644261,-284.046332,0.00021918,2]
[419416459,1775214644271,-320.58541,0.00021918,2]
[419416461,1775214644280,-320.58541,0.00021918,2]
[419416463,1775214644289,-320.58541,0.00021918,2]
[419416465,1775214644299,-320.58541,0.00021918,2]
[419416467,1775214644308,-320.58541,0.00021918,2]
[419416469,1775214644318,-320.58541,0.00021918,2]
[419416471,1775214644327,-320.58541,0.00021918,2]
[419416473,1775214644336,-320.58541,0.00021918,2]
[419416475,1775214644346,-531.155786,0.00021918,2]
[419416477,1775214644355,-531.155786,0.00021918,2]
[419416479,1775214644366,-531.155786,0.00021918,2]
[419416481,1775214644376,-531.155786,0.00021918,2]
[419416483,1775214644385,-531.155786,0.00021918,2]
[419416485,1775214644394,-531.155786,0.00021918,2]
[419416487,1775214644404,-531.155786,0.00021918,2]
[419416489,1775214644414,-531.155786,0.00021918,2]
[419416491,1775214644424,-151.0,0.00021918,2]
[419416493,1775214644434,-151.0,0.00021918,2]
[419416495,1775214644443,-151.0,0.00021918,2]
[419416497,1775214644453,-151.0,0.00021918,2]
[419416499,1775214644463,-823.90787868,0.00021918,2]
[419416709,1775214646862,-1357.45,0.00021908,10]
[419416711,1775214646871,-158.31748032,0.00021918,2]
[419416713,1775214646881,-982.225359,0.00021918,2]
[419416714,1775214646890,-982.225359,0.00021918,2]
[419416716,1775214646901,-982.225359,0.00021918,2]
[419416718,1775214646910,-982.225359,0.00021918,2]
[419416720,1775214646919,-982.225359,0.00021918,2]
[419416722,1775214646929,-982.225359,0.00021918,2]
[419416724,1775214646938,-982.225359,0.00021918,2]
[419416726,1775214646948,-3610.13655054,0.00021918,2]
[419429799,1775215109437,1044.1,0.0003,120]
[419429803,1775215365594,5000.0,0.00034759,120]
[419429804,1775215379350,2500.0,0.00034759,120]
[419429861,1775215832520,-300.0,0.00013556,2]
[419429862,1775215832530,-300.0,0.00013556,2]
[419429863,1775215832541,-1200.0,0.00013556,2]
[419429864,1775215832550,-300.0,0.00013556,2]
[419429865,1775215832559,-613.0,0.00013556,2]
[419429866,1775215832569,-300.0,0.00013557,2]
[419429867,1775215832579,-300.0,0.00013557,2]
[419429868,1775215832588,-300.0,0.00013557,2]
[419429869,1775215832598,-300.0,0.00013557,2]
[419429870,1775215832607,-300.0,0.00013557,2]
[419429871,1775215832617,-300.0,0.00013557,2]
[419429872,1775215832626,-300.0,0.00013557,2]
[419429873,1775215832636,-300.0,0.00013557,2]
[419429874,1775215832645,-300.0,0.00013557,2]
[419429875,1775215832655,-300.0,0.00013557,2]
[419429876,1775215832664,-300.0,0.00013557,2]
[419429877,1775215832674,-300.0,0.00013557,2]
[419429878,1775215832683,-123.60638372,0.00013557,2]
[419429879,1775215834564,1000.0,0.00034759,120]
[419429880,1775215835563,1000.0,0.00034759,120]
[419429881,1775215836493,1000.0,0.00034759,120]
[419429882,1775215837368,1000.0,0.00034759,120]
[419429885,1775215838157,1000.0,0.00034759,120]
[419429911,1775215838685,-176.39361628,0.00013557,2]
[419429913,1775215838695,-300.0,0.00013557,2]
[419429915,1775215838705,-300.0,0.00013557,2]
[419429917,1775215838714,-508.96022751,0.000136,2]
[419429919,1775215838724,-1000.0,0.00013699,2]
[419429921,1775215838734,-600.0,0.00013827,2]
[419429923,1775215838744,-500.0,0.00013867,2]
[419429925,1775215838753,-1000.0,0.00014415,2]
[419429927,1775215838762,-699.9442162,0.00014963,2]
[419429929,1775215838772,-720.0,0.0001521,2]
[419429931,1775215838781,-1257.0965,0.00015244,2]
[419429933,1775215838791,-792.12425008,0.00016631,2]
[419429935,1775215838800,-864.0,0.00016731,2]
[419429937,1775215838810,-1000.0,0.00018404,2]
[419429939,1775215838820,-792.12425002,0.00018429,2]
[419429942,1775215838831,-792.12425002,0.00020226,2]
[419429943,1775215838841,-1000.0,0.00020244,2]
[419429944,1775215838852,-244.0,0.00020244,2]
[419429945,1775215838862,-339.3221491,0.00020776,3]
[419429946,1775215838871,-152.0,0.000209,2]
[419429947,1775215838881,-192.89167296,0.00021643,2]
[419429948,1775215838891,-152.0,0.00021725,2]
[419429949,1775215838900,-184.0,0.00021787,2]
[419429950,1775215838909,-166.02746511,0.000219,2]
[419429951,1775215838919,-742.3333648,0.00021917,2]
[419429952,1775215838928,-192.351246,0.00021918,2]
[419429953,1775215838938,-192.351246,0.00021918,2]
[419429954,1775215838948,-192.351246,0.00021918,2]
[419429955,1775215838958,-192.351246,0.00021918,2]
[419429956,1775215838967,-318.693472,0.00021918,2]
[419429957,1775215838977,-318.693472,0.00021918,2]
[419429958,1775215838986,-318.693472,0.00021918,2]
[419429959,1775215838996,-318.693472,0.00021918,2]
[419429960,1775215839008,-151.0,0.00021918,2]
[419429961,1775215839018,-151.0,0.00021918,2]
[419429962,1775215839029,-226.899338,0.00021918,2]
[419429963,1775215839039,-151.0,0.00021918,2]
[419429964,1775215839050,-192.351246,0.00021918,2]
[419429965,1775215839060,-192.351246,0.00021918,2]
[419429966,1775215839070,-192.351246,0.00021918,2]
[419429967,1775215839080,-192.351246,0.00021918,2]
[419429968,1775215839089,-318.693472,0.00021918,2]
[419429969,1775215839099,-318.693472,0.00021918,2]
[419429970,1775215839109,-318.693472,0.00021918,2]
[419429971,1775215839118,-318.693472,0.00021918,2]
[419429972,1775215839128,-151.0,0.00021918,2]
[419429974,1775215839138,-589.335215,0.00021918,2]
[419429976,1775215839147,-200.40406363,0.00021918,2]
[419429978,1775215839159,-388.93115137,0.00021918,2]
[419429980,1775215839168,-539.56165916,0.00021918,2]
[419430442,1775215843782,-49.77355584,0.00021918,2]
[419430444,1775215843791,-589.335215,0.00021918,2]
[419430446,1775215843802,-132.88123137,0.00021935,2]
[419430448,1775215843814,-40.23576863,0.00021935,2]
[419430450,1775215843824,-500.0,0.00021973,2]
[419430452,1775215843834,-1466.9968614,0.00021981,2]
[419430454,1775215843846,-2149.33,0.00021981,2]
[419430456,1775215843857,-203.2842836,0.00021981,2]
[419430458,1775215843867,-296.7157164,0.00021981,2]
[419430460,1775215843879,-2447.67113488,0.00021981,2]
[419430463,1775215843891,-1075.22429372,0.00021981,2]
[419430465,1775215843901,-1486.34769704,0.00021981,2]
[419430740,1775215846554,-919.56961649,0.00021981,2]
[419430764,1775215846772,-1413.69383147,0.00021981,2]
[419430766,1775215846781,-3819.611145,0.00021981,2]
[419430768,1775215846791,-262.548185,0.00021981,2]
[419430770,1775215846801,-577.94,0.0002199,10]
[419430785,1775215846811,-321.45222585,0.00021997,2]
[419430787,1775215846940,-279.5894054,0.00021997,2]
[419430789,1775215846949,-500.0,0.00021999,2]
[419430791,1775215846960,-399.80999761,0.00021999,2]
[419430793,1775215846971,-500.0,0.00021999,2]
[419430795,1775215846981,-500.0,0.00021999,2]
[419430797,1775215846991,-500.0,0.00021999,2]
[419430799,1775215847000,-500.0,0.00021999,2]
[419430801,1775215847010,-500.0,0.00021999,2]
[419430804,1775215847022,-500.0,0.00021999,2]
[419430806,1775215847032,-500.0,0.00021999,2]
[419430808,1775215847041,-500.0,0.00021999,2]
[419430810,1775215847050,-500.0,0.00021999,2]
[419430812,1775215847060,-500.0,0.00021999,2]
[419430814,1775215847069,-500.0,0.00021999,2]
[419430816,1775215847078,-500.0,0.00021999,2]
[419430818,1775215847088,-500.0,0.00021999,2]
[419430820,1775215847097,-642.80224176,0.00021999,2]
[419430822,1775215847106,-500.0,0.00021999,2]
[419430824,1775215847115,-500.0,0.00021999,2]
[419430826,1775215847124,-400.0,0.00021999,2]
[419430828,1775215847134,-589.335215,0.00021999,2]
[419430830,1775215847143,-589.335215,0.00021999,2]
[419430832,1775215847152,-589.335215,0.00021999,2]
[419430834,1775215847161,-589.335215,0.00021999,2]
[419430836,1775215847171,-3819.611145,0.00021999,2]
[419430838,1775215847180,-3819.611145,0.00021999,2]
[419430840,1775215847190,-606.68921457,0.00021999,2]
[419430842,1775215847203,-3212.92193043,0.00021999,2]
[419430844,1775215847213,-3819.611145,0.00021999,2]
[419430846,1775215847222,-166.99726548,0.00022,2]
[419431912,1775215858271,1000.0,0.00034759,120]
[419432011,1775215859347,1000.0,0.00034759,120]
[419432104,1775215860261,1000.0,0.00034759,120]
[419443317,1775216436795,1000.0,0.000325,120]
[419443319,1775216475921,2000.0,0.000325,120]
[419443320,1775216482321,1000.0,0.000325,120]
[419443321,1775216486579,2000.0,0.000325,120]
[419443325,1775216582068,1000.0,0.000325,120]
[419443326,1775216597109,1000.0,0.000325,120]
[419443327,1775216608719,1000.0,0.000325,120]
[419443429,1775216717358,500.0,0.00034758,120]
[419443430,1775216717603,500.03788975,0.00034758,120]
[419443494,1775217032607,-1000.0,0.00013699,2]
[419443495,1775217032617,-349.64553418,0.00019852,2]
[419443593,1775217038819,-17.36106425,0.00019852,2]
[419443594,1775217038829,-167.6798493,0.00020766,2]
[419443595,1775217038841,-132.92180766,0.00020861,2]
[419443596,1775217038852,-867.07819234,0.00020861,2]
[419443597,1775217038863,-195.4506083,0.00020948,2]
[419443598,1775217038873,-326.1019139,0.00021588,2]
[419443599,1775217038883,-324.9815827,0.00021591,2]
[419443600,1775217038893,-327.6098971,0.00021591,2]
[419443601,1775217038903,-1892.72634663,0.00021809,3]
[419443602,1775217038913,-300.0,0.00021972,2]
[419443604,1775217038923,-1200.0,0.00021972,2]
[419443605,1775217038932,-815.3,0.0002199,10]
[419443606,1775217038941,-899.01,0.0002199,10]
[419443608,1775217038951,-749.17,0.0002199,10]
[419443609,1775217038960,-624.31,0.0002199,10]
[419443610,1775217038970,-517.15894075,0.00021997,2]
[419443611,1775217038980,-5.599549,0.00021997,2]
[419443829,1775217041277,-184.0,0.00021603,2]
[419443831,1775217041288,-497.66138071,0.00021997,2]
[419443833,1775217041298,-318.33861929,0.00021997,2]
[419443838,1775217041330,-440.66138071,0.00021997,2]
[419443840,1775217041340,-319.49740145,0.00021999,2]
[419444141,1775217044118,-180.50259855,0.00021999,2]
[419444144,1775217044129,-319.49740145,0.00021999,2]
[419444146,1775217044141,-180.50259855,0.00021999,2]
[419444148,1775217044151,-329.86699833,0.00021999,2]
[419444150,1775217044160,-500.0,0.00021999,2]
[419444152,1775217044170,-411.8942278,0.00021999,2]
[419444154,1775217044179,-500.0,0.00021999,2]
[419444156,1775217044188,-500.0,0.00021999,2]
[419444158,1775217044198,-500.0,0.00021999,2]
[419444160,1775217044207,-500.0,0.00021999,2]
[419444162,1775217044217,-500.0,0.00021999,2]
[419444164,1775217044226,-500.0,0.00021999,2]
[419444166,1775217044236,-500.0,0.00021999,2]
[419444168,1775217044245,-77.73617532,0.00021999,2]
[419444438,1775217046966,-520.26,0.0002199,10]
[419444440,1775217046976,-422.26382468,0.00021999,2]
[419444442,1775217046985,-379.96156924,0.00021999,2]
[419444444,1775217046995,-500.0,0.00021999,2]
[419444446,1775217047005,-500.0,0.00021999,2]
[419444448,1775217047016,-500.0,0.00021999,2]
[419444450,1775217047026,-400.0,0.00021999,2]
[419444452,1775217047035,-173.117,0.00021999,2]
[419444454,1775217047045,-9232.97094455,0.00022,2]
[419444456,1775217047057,-686.84806561,0.00022,2]
[419444459,1775217047074,-528.79904169,0.00022,2]
[419444461,1775217047087,-2987.00353236,0.00022,2]
[419455478,1775218206155,649.94241313,7.6e-05,2]
[419455483,1775218211377,14797.9929869,0.00034759,120]
[419455557,1775218237920,-5000.0,0.00011432,2]
[419455559,1775218237930,-5000.0,0.00011547,2]
[419455561,1775218237940,-5000.0,0.00011664,2]
[419455564,1775218237950,-300.0,0.00013022,2]
[419455566,1775218237959,-300.0,0.00013022,2]
[419455568,1775218237968,-103.0796131,0.00013022,2]
[419455773,1775218240704,-196.9203869,0.00013022,2]
[419455775,1775218240714,-300.0,0.00013022,2]
[419455777,1775218240723,-300.0,0.00013022,2]
[419455779,1775218240733,-300.0,0.00013022,2]
[419455781,1775218240742,-300.0,0.00013022,2]
[419455783,1775218240751,-300.0,0.00013022,2]
[419455785,1775218240760,-300.0,0.00013022,2]
[419455787,1775218240770,-300.0,0.00013022,2]
[419455789,1775218240779,-300.0,0.00013022,2]
[419455791,1775218240789,-300.0,0.00013022,2]
[419455793,1775218240798,-300.0,0.00013022,2]
[419455795,1775218240808,-300.0,0.00013022,2]
[419455797,1775218240818,-300.0,0.00013022,2]
[419455799,1775218240827,-500.0,0.000131,2]
[419455801,1775218240836,-1000.0,0.00013648,2]
[419455803,1775218240847,-1000.0,0.00013699,2]
[419455805,1775218240857,-1350.37282274,0.00014175,2]
[419455807,1775218240866,-500.0,0.00014196,2]
[419455809,1775218240876,-301.42367448,0.00019854,2]
[419455811,1775218240886,-893.79141117,0.00019854,2]
[419455813,1775218240895,-184.0,0.00020184,2]
[419455815,1775218240905,-3356.51857257,0.00020588,12]
[419455817,1775218240915,-574.02010571,0.000208,2]
[419455820,1775218240924,-323.16033511,0.00020898,2]
[419456012,1775218243240,-1634.69566489,0.00020898,2]
[419456014,1775218243251,-6639.18619726,0.000209,2]
[419456016,1775218243262,-2030.296672,0.00020953,2]
[419456018,1775218243272,-600.0,0.00020999,2]
[419456020,1775218243282,-2495.82146583,0.00021,2]
[419456282,1775218246025,-504.17853417,0.00021,2]
[419456284,1775218246035,-1024.04331394,0.00021008,2]
[419456311,1775218246290,-1081.37433492,0.00021008,2]
[419456313,1775218246300,-3000.0,0.0002101,2]
[419456315,1775218246310,-3000.0,0.0002102,2]
[419456317,1775218246320,-1315.60095546,0.0002103,2]
[419461713,1775218364031,396.83008147,0.00034759,120]
[419461714,1775218364363,232.98328642,0.00034759,120]
[419461715,1775218364399,306.61517884,0.00034759,120]
[419461716,1775218364669,232.98328642,0.00034759,120]
[419461717,1775218364698,306.61517884,0.00034759,120]